Workbook

Sheet Índice
A1: Modelo Económico Forestal
A2: Eucaliptus en Mesopotamia Sur
C4: Nivel de intervención
C5: Básico | D5: Avanzado | E5: Experto
A6: Tablero | B6: Tablero de comando | C6: Editar celdas indicadas para simular diferentes escenarios de precios y variables de interés. Calcular sensibilidades y series de forma manual. | D6: Agregar variantes de características del modelo al tablero de comando, tanto en ingresos de datos como en resultados. Automatizar variaciones sistemáticas con macros. Calcular sensibilidades y series complejas. | E6: Reformular a la medida de las necesidades del caso.
A7: modelo | B7: Estructura temporal de ingresos y egresos económicos, basada en el modelo técnico. | C7: Solo lectura | D7: Modificar parámetros o estructura temporal del modelo sin alterar las celdas relacionadas con el tablero de comando. | E7: Reformular el modelo en aspectos más estructurales; agregar otros indicadores de interés al tablero de comando; automatizar variantes del modelo.
A8: coeficientes | B8: Coeficientes técnicos del modelo técnico forestal, que cuantifican los rendimientos y requerimientos de cada tarea productiva. | C8: Solo lectura | D8: Solo lectura | E8: Modificar coeficientes para representar modelos con diferentes determinantes técnicas.
A9: precios | B9: Conjunto de precios y otras variables de contexto que hacen a las condiciones económicas del modelo forestal. | C9: Solo lectura | D9: Modificar precios específicos que no dependan del tablero de comando, o modificar la relación entre este y determinados precios | E9: Crear o modificar relaciones de dependencia entre precios.
A10: ANR | B10: Parámetros para computar el efecto del ANR que prevé la Ley N° 25.080 y modificatorias sobre el modelo. | C10: Seleccionar incluir o no incluir los aportes en el cálculo del modelo. | D10: Actualizar o modificar los montos. | E10: Incorporar otros instrumentos de apoyo o gravámenes; modificar su inserción en la estructura temporal del modelo.
A12: Esta planilla de cálculo fue elaborada como actividad del Proyecto Estructural INTA - I016: Desarrollo de una silvicultura sostenible de bosques implantados de alta productividad.
A13: Revisión: | B13: noviembre 2021
A15: Equipo técnico:
A16: Demián Olemberg1, Luis Vera1, Mario Flores Palenzona2, Carlos de la Peña1, María de los Ángeles García1, Federico Caniza1, Ciro Mastrandrea1, Juan Pablo Zabala2, Sebastián Bessonart2.
A17: 1 Instituto Nacional de Tecnología Agropecuaria (INTA)
A18: 2 Dirección Nacional de Desarrollo Foresto Industrial - Ministerio de Agricultura Ganadería y Pesca de la Nación (DNDFI-MAGYP)
A20: Documento del modelo técnico-económico:
A21: https://www.jornadasforestales.com.ar/book/revista/revista19-10-2021a.pdf
A23: Contacto/consultas:
A24: olemberg.demian@inta.gob.ar

Sheet Tablero
A1: Tablero de comando
D2: Año base 2020 | F2: Escenarios alternativos:
A3: Tasa (%) | B3: 0.05
A4: Tipo de cambio ($/USD) | B4: 63 | D4: 63
A5: JEQ ($/jornal) | B5: 2400 | D5: 2400
A6: GO ($/l) | B6: 61.07 | D6: 61.07
A7: HMEQ ($/h) | B7: 392.084 | D7: 392.084
A8: PLANT ($/plantín) | B8: 7 | D8: 7
A9: ANR | B9: NO
A10: Precio Madera ($/t) | B10: 877 | D10: 877
A11: Rendimiento (t/ha) | B11: 380 | D11: 380
A12: VAN ($) | B12: =modelo!$M$5+NPV(Tablero!$B$3,modelo!$M$6:$M$17) -> 112204.9082
A13: TIR | B13: =IRR(modelo!$M$5:$M$17) -> 0.1525926318
A15: Otros indicadores y cálculos
A16: Costo total bruto ($/ha) | B16: =SUM(modelo!$O$5:$O$16) -> 81146.01808
A17: Costo total actualizado ($/ha) | B17: =-NPV(tasa,modelo!$M$5:$M$16) -> 68343.93778
A18: Costo bruto implantación ($/ha) | B18: =-modelo!$N$7 -> 52750.00262
A19: Otros...

Sheet modelo
A1: Modelo: Estructura temporal de ingresos y egresos económicos
A3: VALORES ($) EXPRESADOS EN PESOS, PARA 1 HA
A4: Año | B4: JEQ | C4: GO | D4: HMEQ | E4: PLANT | F4: AGROQ | G4: AMORT | H4: IMP | I4: Subtotal | J4: Admin | K4: Egresos | L4: Ingresos | M4: FF | N4: FF acum. | O4: Costo
A5: 0 | B5: =coeficientes!$B$5+coeficientes!$B$6+coeficientes!$B$7+coeficientes!$B$8+coeficientes!$B$9+coeficientes!$B$16 -> 3.072538533 | C5: =coeficientes!$F$5+coeficientes!$F$6+coeficientes!$F$7+coeficientes!$F$8 -> 89.80785865 | D5: =coeficientes!$E$5+coeficientes!$E$6+coeficientes!$E$7+coeficientes!$E$8+coeficientes!$E$16 -> 5.221234155 | E5: =coeficientes!$C$8 -> 1000 | F5: =coeficientes!$D$5+coeficientes!$D$7+coeficientes!$D$9 -> 7155.64143 | G5: =coeficientes!$B$15 -> 1040.82192 | H5: =precios!$B$7 -> 0 | I5: =B5*precios!$B$3+C5*precios!$B$4+D5*precios!$B$5+E5*precios!$B$6+F5+G5+H5 -> 30102.28413 | K5: =I5+J5 -> 30102.28413 | L5: 0 | M5: =L5-K5 -> -30102.28413 | N5: =M5 -> -30102.28413 | O5: =IF(M6<0,0,-N5) -> 0
A6: 1 | B6: =coeficientes!$B$10+coeficientes!$B$11+coeficientes!$B$13+coeficientes!$B$17 -> 2.4634252 | C6: =coeficientes!$F$10+coeficientes!$F$13 -> 30.1236164 | D6: =coeficientes!$E$10+coeficientes!$E$13+coeficientes!$E$17 -> 3.360419528 | F6: =coeficientes!$D$10+coeficientes!$D$11 -> 1258.27065 | G6: =coeficientes!$B$15 -> 1040.82192 | H6: =precios!$B$7 -> 0 | I6: =B6*precios!$B$3+C6*precios!$B$4+D6*precios!$B$5+E6*precios!$B$6+F6+G6+H6 -> 11368.52903 | K6: =I6+J6 -> 11368.52903 | L6: 0 | M6: =L6-K6 -> -11368.52903 | N6: =N5+M6 -> -41470.81316 | O6: =IF(M7<0,0,IF(N6<0,IF(-N6>SUM($O$5:O5),-N6-SUM($O$5:O5),0),0)) -> 0
A7: 2 | B7: =coeficientes!$B$12+coeficientes!$B$13+coeficientes!$B$14 -> 3.556467864 | C7: =coeficientes!$F$12+coeficientes!$F$13+coeficientes!$F$14 -> 10.56516117 | D7: =coeficientes!$E$12+coeficientes!$E$13+coeficientes!$E$14 -> 0.5031080456 | G7: =coeficientes!$B$15 -> 1040.82192 | H7: =precios!$B$7 -> 0 | I7: =B7*precios!$B$3+C7*precios!$B$4+D7*precios!$B$5+E7*precios!$B$6+F7+G7+H7 -> 10418.8198 | J7: =coeficientes!$B$18*modelo!$I$18/13 -> 860.3696542 | K7: 11279.18946 | L7: 0 | M7: -11279.18946 | N7: =N6+M7 -> -52750.00262 | O7: =IF(M8<0,0,IF(N7<0,IF(-N7>SUM($O$5:O6),-N7-SUM($O$5:O6),0),0)) -> 0
A8: 3 | B8: =coeficientes!$B$13 -> 0.223112 | C8: =coeficientes!$F$13 -> 5.602620616 | D8: =coeficientes!$E$13 -> 0.2667941797 | G8: =coeficientes!$B$15 -> 1040.82192 | H8: =precios!$B$7 -> 0 | I8: =B8*precios!$B$3+C8*precios!$B$4+D8*precios!$B$5+E8*precios!$B$6+F8+G8+H8 -> 2023.048491 | J8: =coeficientes!$B$18*modelo!$I$18/13 -> 860.3696542 | K8: 2883.418145 | L8: =ANR!B4 -> 0 | M8: -2883.418145 | N8: -55633.42077 | O8: =IF(M9<0,0,IF(N8<0,IF(-N8>SUM($O$5:O7),-N8-SUM($O$5:O7),0),0)) -> 0
A9: 4 | B9: =coeficientes!$B$14+coeficientes!$B$13 -> 1.102235864 | C9: =coeficientes!$F$14+coeficientes!$F$13 -> 9.808179678 | D9: =coeficientes!$E$14+coeficientes!$E$13 -> 0.4670609401 | G9: =coeficientes!$B$15 -> 1040.82192 | H9: =precios!$B$7 -> 0 | I9: =B9*precios!$B$3+C9*precios!$B$4+D9*precios!$B$5+E9*precios!$B$6+F9+G9+H9 -> 4468.300649 | J9: =coeficientes!$B$18*modelo!$I$18/13 -> 860.3696542 | K9: 5328.670303 | L9: =ANR!B5+ANR!B6 -> 0 | M9: -5328.670303 | N9: -60962.09107 | O9: =IF(M10<0,0,IF(N9<0,IF(-N9>SUM($O$5:O8),-N9-SUM($O$5:O8),0),0)) -> 0
A10: 5 | B10: =coeficientes!$B$13 -> 0.223112 | C10: =coeficientes!$F$13 -> 5.602620616 | D10: =coeficientes!$E$13 -> 0.2667941797 | G10: =coeficientes!$B$15 -> 1040.82192 | H10: =precios!$B$7 -> 0 | I10: =B10*precios!$B$3+C10*precios!$B$4+D10*precios!$B$5+E10*precios!$B$6+F10+G10+H10 -> 2023.048491 | J10: =coeficientes!$B$18*modelo!$I$18/13 -> 860.3696542 | K10: 2883.418145 | L10: 0 | M10: -2883.418145 | N10: -63845.50921 | O10: =IF(M11<0,0,IF(N10<0,IF(-N10>SUM($O$5:O9),-N10-SUM($O$5:O9),0),0)) -> 0
A11: 6 | B11: =coeficientes!$B$13 -> 0.223112 | C11: =coeficientes!$F$13 -> 5.602620616 | D11: =coeficientes!$E$13 -> 0.2667941797 | G11: =coeficientes!$B$15 -> 1040.82192 | H11: =precios!$B$7 -> 0 | I11: =B11*precios!$B$3+C11*precios!$B$4+D11*precios!$B$5+E11*precios!$B$6+F11+G11+H11 -> 2023.048491 | J11: =coeficientes!$B$18*modelo!$I$18/13 -> 860.3696542 | K11: 2883.418145 | L11: 0 | M11: -2883.418145 | N11: -66728.92736 | O11: =IF(M12<0,0,IF(N11<0,IF(-N11>SUM($O$5:O10),-N11-SUM($O$5:O10),0),0)) -> 0
A12: 7 | B12: =coeficientes!$B$13 -> 0.223112 | C12: =coeficientes!$F$13 -> 5.602620616 | D12: =coeficientes!$E$13 -> 0.2667941797 | G12: =coeficientes!$B$15 -> 1040.82192 | H12: =precios!$B$7 -> 0 | I12: =B12*precios!$B$3+C12*precios!$B$4+D12*precios!$B$5+E12*precios!$B$6+F12+G12+H12 -> 2023.048491 | J12: =coeficientes!$B$18*modelo!$I$18/13 -> 860.3696542 | K12: 2883.418145 | L12: 0 | M12: -2883.418145 | N12: -69612.3455 | O12: =IF(M13<0,0,IF(N12<0,IF(-N12>SUM($O$5:O11),-N12-SUM($O$5:O11),0),0)) -> 0
A13: 8 | B13: =coeficientes!$B$13 -> 0.223112 | C13: =coeficientes!$F$13 -> 5.602620616 | D13: =coeficientes!$E$13 -> 0.2667941797 | G13: =coeficientes!$B$15 -> 1040.82192 | H13: =precios!$B$7 -> 0 | I13: =B13*precios!$B$3+C13*precios!$B$4+D13*precios!$B$5+E13*precios!$B$6+F13+G13+H13 -> 2023.048491 | J13: =coeficientes!$B$18*modelo!$I$18/13 -> 860.3696542 | K13: 2883.418145 | L13: 0 | M13: -2883.418145 | N13: -72495.76365 | O13: =IF(M14<0,0,IF(N13<0,IF(-N13>SUM($O$5:O12),-N13-SUM($O$5:O12),0),0)) -> 0
A14: 9 | B14: =coeficientes!$B$13 -> 0.223112 | C14: =coeficientes!$F$13 -> 5.602620616 | D14: =coeficientes!$E$13 -> 0.2667941797 | G14: =coeficientes!$B$15 -> 1040.82192 | H14: =precios!$B$7 -> 0 | I14: =B14*precios!$B$3+C14*precios!$B$4+D14*precios!$B$5+E14*precios!$B$6+F14+G14+H14 -> 2023.048491 | J14: =coeficientes!$B$18*modelo!$I$18/13 -> 860.3696542 | K14: 2883.418145 | L14: 0 | M14: -2883.418145 | N14: -75379.18179 | O14: =IF(M15<0,0,IF(N14<0,IF(-N14>SUM($O$5:O13),-N14-SUM($O$5:O13),0),0)) -> 0
A15: 10 | B15: =coeficientes!$B$13 -> 0.223112 | C15: =coeficientes!$F$13 -> 5.602620616 | D15: =coeficientes!$E$13 -> 0.2667941797 | G15: =coeficientes!$B$15 -> 1040.82192 | H15: =precios!$B$7 -> 0 | I15: =B15*precios!$B$3+C15*precios!$B$4+D15*precios!$B$5+E15*precios!$B$6+F15+G15+H15 -> 2023.048491 | J15: =coeficientes!$B$18*modelo!$I$18/13 -> 860.3696542 | K15: 2883.418145 | L15: 0 | M15: -2883.418145 | N15: -78262.59994 | O15: =IF(M16<0,0,IF(N15<0,IF(-N15>SUM($O$5:O14),-N15-SUM($O$5:O14),0),0)) -> 0
A16: 11 | B16: =coeficientes!$B$13 -> 0.223112 | C16: =coeficientes!$F$13 -> 5.602620616 | D16: =coeficientes!$E$13 -> 0.2667941797 | G16: =coeficientes!$B$15 -> 1040.82192 | H16: =precios!$B$7 -> 0 | I16: =B16*precios!$B$3+C16*precios!$B$4+D16*precios!$B$5+E16*precios!$B$6+F16+G16+H16 -> 2023.048491 | J16: =coeficientes!$B$18*modelo!$I$18/13 -> 860.3696542 | K16: 2883.418145 | L16: 0 | M16: -2883.418145 | N16: -81146.01808 | O16: =IF(M17<0,0,IF(N16<0,IF(-N16>SUM($O$5:O15),-N16-SUM($O$5:O15),0),0)) -> 81146.01808
A17: 12 | B17: =coeficientes!$B$13 -> 0.223112 | C17: =coeficientes!$F$13 -> 5.602620616 | D17: =coeficientes!$E$13 -> 0.2667941797 | G17: =coeficientes!$B$15 -> 1040.82192 | H17: =precios!$B$7 -> 0 | I17: =B17*precios!$B$3+C17*precios!$B$4+D17*precios!$B$5+E17*precios!$B$6+F17+G17+H17 -> 2023.048491 | J17: =coeficientes!$B$18*modelo!$I$18/13 -> 860.3696542 | K17: 2883.418145 | L17: =coeficientes!$B$19*precios!$B$10 -> 333260 | M17: 330376.5819 | N17: 249230.5638
I18: =SUM($I$5:$I$17) -> 74565.37003 | J18: =SUM($J$7:$J$17) -> 9464.066196
A20: Referencias:
A21: JEQ | B21: Jornal equivalente: cantidad de jornales (categoría testigo peón gral. s/res. CNTA)
A22: GO | B22: Litros de gasoil equivalente: cantidad de litros de gasoil tipo 2 precio final en comercializadora seleccionada
A23: HMEQ | B23: Horas máquina equivalente: cantidad de horas de uso de tractor tipo mediano con implementos
A24: PLANT | B24: Material de plantación: cantidad de plantines
A25: AGROQ | B25: Agroquímicos: gasto en $ en productos químicos varios
A26: AMORT | B26: Amortizaciones: amortizaciones de bienes durables en $
A27: IMP | B27: Impuestos específicos en $
A28: Subtotal | B28: Suma de todos los egresos sustantivos del año ($), exceptuando gastos de administración
A29: Admin | B29: Gastos de administración en $
A30: Egresos | B30: Suma de todos los egresos del año ($), incluyendo gastos de administración
A31: Ingresos | B31: Suma de todos los ingresos del año ($)
A32: FF | B32: Flujo de fondos neto del año ($)
A33: FF acum. | B33: Flujo de fondos neto acumulado hasta el año ($)

Sheet coeficientes
A1: Coeficientes técnicos
A3: Tareas | B3: JEQ | C3: PLANT | D3: AGROQ | E3: HMEQ | F3: GO | H3: % | I3: 0.1959155692 | J3: 0.6408214566 | K3: =1-I3-J3 -> 0.1632629743
A4: Proporción jornal calif. / jornal gral. | B4: 1.11556 | H4: CHM | I4: HMEQ | J4: Comb. y lub. | K4: Amortiz.
A5: Control de plagas año 0 | B5: =0.5*pjo -> 0.55778 | D5: =5*precios!B11 -> 1301.643 | E5: =I5 -> 0.2213743996 | F5: 4.648814965 | H5: 443.03 | I5: =I$3*$H5/392.08 -> 0.2213743996 | J5: =J$3*$H5/61.07 -> 4.648814965 | K5: =K$3*$H5 -> 72.3303955
A6: Preparación del terreno | B6: =0.28*pjo -> 0.3123568 | E6: 2.773163695 | F6: 58.23584347 | H6: 5549.85 | I6: =I$3*$H6/392.08 -> 2.773163695 | J6: =J$3*$H6/61.07 -> 58.23584347 | K6: =K$3*$H6 -> 906.0850179
A7: Control de malezas 0 | B7: =(0.05+0.08+0.09)*pjo -> 0.2454232 | D7: =(3.5+2.5)*precios!B12+0.3*precios!B13 -> 2148.33843 | E7: 1.171383116 | F7: 24.59879448 | H7: 2344.254181 | I7: =I$3*$H7/392.08 -> 1.171383116 | J7: =J$3*$H7/61.07 -> 24.59879448 | K7: =K$3*$H7 -> 382.7299101
A8: Plantación | B8: =0.17*pjo+5/6 -> 1.022978533 | C8: 1000 | E8: 0.1106871165 | F8: 2.324405733 | H8: 221.5148333 | I8: =I$3*$H8/392.08 -> 0.1106871165 | J8: =J$3*$H8/61.07 -> 2.324405733 | K8: =K$3*$H8 -> 36.16517054
A9: Fertilización | B9: 0.31 | D9: =100*precios!B14 -> 3705.66
A10: Control de malezas año 1 | B10: =0.26+pjo*0.22 -> 0.5054232 | D10: =3.5*precios!B12 -> 867.77775 | E10: =I10 -> 1.167678378 | F10: =J10 -> 24.52099578 | H10: 2336.84 | I10: =I$3*$H10/392.08 -> 1.167678378 | J10: =J$3*$H10/61.07 -> 24.52099578 | K10: =K$3*$H10 -> 381.5194488
A11: Control de plagas año 1 | B11: =0.25*pjo -> 0.27889 | D11: =1.5*precios!B11 -> 390.4929
A12: Poda año 2 | B12: =2*pjo*1.1 -> 2.454232 | E12: =I12 -> 0.03604710559 | F12: 0.7569814946 | H12: 72.14 | I12: =I$3*$H12/392.08 -> 0.03604710559 | J12: =J$3*$H12/61.07 -> 0.7569814946 | K12: =K$3*$H12 -> 11.77779097
A13: Limpieza caminos y cortafuegos | B13: =0.2*pjo -> 0.223112 | E13: 0.2667941797 | F13: 5.602620616 | H13: 533.9272546 | I13: =I$3*$H13/392.08 -> 0.2667941797 | J13: =J$3*$H13/61.07 -> 5.602620616 | K13: =K$3*$H13 -> 87.17055165
A14: Raleo año 2 | B14: =0.788056101*pjo -> 0.879123864 | E14: 0.2002667604 | F14: 4.205559062 | H14: 400.7879095 | I14: =I$3*$H14/392.08 -> 0.2002667604 | J14: =J$3*$H14/61.07 -> 4.205559062 | K14: =K$3*$H14 -> 65.43382617
A15: Amortizaciones | B15: =-PMT(tasa,30,precios!$B$8)/250 -> 1040.82192 | H15: S admin | I15: $ jo | J15: $ maq
A16: Administración año 0 | B16: =I16/precios!$B$3 -> 0.624 | E16: =J16/392.08 -> 0.9446258285 | H16: 1867.968895 | I16: 1497.6 | J16: 370.3688948
A17: Administración año 1 | B17: =I17/precios!$B$3 -> 1.456 | E17: =J17/392.08 -> 1.92594697 | H17: 4249.525288 | I17: 3494.4 | J17: 755.125288
A18: Administración resto | B18: 0.15 | C18: % subtotal | H18: 13359.79168 | I18: =0.8*H18 -> 10687.83334 | J18: =0.2*H18 -> 2671.958336
A19: Rendimiento tala final única | B19: =RENDIMIENTO -> 380 | C19: t
A21: Observaciones
A22: Amortizaciones | B22: Amortización anual prorrateado por ha de un tractor a media vida útil cada 250 ha, a la tasa de interés indicada, con vida útil remanente de 30 años, más amortizaciones menores: implementos, motosierras, etc. El precio de la maquinaria se actualiza proporcionalmente con el tipo de cambio, y asimismo las amortizaciones.
A23: Administración | B23: Para los años 0 y 1 se internalizan los gastos de administración en los requerimientos de JEQ y HMEQ. Para el resto de la serie, se aplica una tasa fija sobre el subtotal de toda la serie, y se prorratea en anualidades iguales. La tasa surge de optimizar el valor total obtenido para igualar los costos de administración según planillas de modelos vigentes INTA Concordia.
A24: HMEQ | B24: Hora Máquina Equivalente: se calcula en base a la tabla de la derecha. El costo horario de maquinaria (CHM) según planillas de labores de modelos vigentes INTA Concordia, se descompone en HMEQ, GO y amortizaciones, según proporciones fijas correspondientes a la categoría tractor intermedio, independientemente del equipo efectivamente usado en las distintas tareas. De allí surgen HMEQ y GO. Las amortizaciones aquí se computan independientemente, según se indica arriba.
A25: AGROQ | B25: Valores en $ resultantes de aplicar las cantidades técnicamente especificadas por el precio vigente, que se actualiza proporcionalmente con el tipo de cambio.
A26: JEQ | B26: Aquellas labores que requieren trabajo de mayor calificación tienen su coeficiente multiplicado por la proporción correspondiente.
A27: GO | B27: Todos los consumos de diferentes combustibles y lubricantes se expresan como litros de gasoil equivalentes, según la relación de precios vigente al año base, 2020.

Sheet precios
A1: Precios
C2: Unidad | D2: Fuente | E2: Fecha | F2: Observaciones
A3: JEQ | B3: =PJEQ -> 2400 | C3: $/día | D3: Res. CNTA 188-19 | E3: 2020-01-01
A4: GO | B4: =PGO -> 61.07 | C4: $/l | D4: YPF DIRECTO | E4: 2019-12-06
A5: HMEQ | B5: =PHMEQ -> 392.084 | C5: $/h | D5: Planilla precios forestales INTA Concordia (cálculo en base a) | E5: 2020-01-01
A6: PLANT | B6: =PPLANT -> 7 | C6: $/plantín | D6: Planilla precios forestales INTA Concordia | E6: 2019-10-01
A7: Impuestos específicos netos de subsidios | B7: 0 | C7: $/ha/año | D7: Referentes técnicos locales | E7: 2021-05-21
A8: Tractor media vida útil (más motosierra, implementos, etc.) | B8: =63492*TCN -> 3999996 | C8: $ | D8: Referentes técnicos locales | E8: 2021-05-21
A9: Madera raleo (pago neto en pie) | B9: =PMAD/2.0733 -> 422.9971543 | C9: $/t | D9: Proporción fija de precio madera final | E9: 2019-12-06
A10: Madera final (pago neto en pie) | B10: =PMAD -> 877 | C10: $/t | D10: Planilla precios forestales INTA Concordia (cálculo en base a) | E10: 2019-12-06
A11: Formidor | B11: =4.1322*TCN -> 260.3286 | C11: $/kg | D11: Planilla precios forestales INTA Concordia | E11: 2020-01-01
A12: Glif | B12: =3.9355*TCN -> 247.9365 | C12: $/l | D12: COINSA
A13: Preemergente FORDOR | B13: =34.9587*TCN -> 2202.3981 | C13: $/140g | D13: Planilla precios forestales INTA Concordia | E13: 2019-10-01
A14: Fertliz. fosfato diamónico | B14: =0.5882*TCN -> 37.0566 | C14: $/kg | D14: Planilla precios forestales INTA Concordia

Sheet ANR
A1: Instrumentos de apoyo específicos sectoriales
B3: AENR a imputar | C3: monto AENR | D3: Normativa | E3: Observaciones
A4: Implantación, cobro al año 3 | B4: =IF(Tablero!$B$9="SÍ",ANR!C4,0) -> 0 | C4: 40864 | D4: Res. 116/20 | E4: plantando hasta 20 ha/año
A5: Raleo del año 2, cobro al año 4 | B5: =IF(Tablero!$B$9="SÍ",ANR!C5,0) -> 0 | C5: 6677 | D5: Res. 116/20
A6: Poda del año 2, cobro al año 4 | B6: =IF(Tablero!$B$9="SÍ",ANR!C6,0) -> 0 | C6: 5643 | D6: Res. 116/20
A9: Referencias:
A10: AENR | B10: Apoyo económico no reintegrable
